[Event "Early-Titled-Tuesday-Blitz-September-12-2023"]
[Site "Chess.com"]
[Date "2023.09.12"]
[Round "8"]
[White "Beca95"]
[Black "hansen"]
[Result "0-1"]
[WhiteElo "2962"]
[BlackElo "2905"]
[TimeControl "180+1"]
[EndTime "9:29:38 PDT"]
[Termination "hansen won by resignation"]

1. d4 {[%clk 0:03:00.9]} 1... Nf6 {[%clk 0:02:59.3]} 2. c4 {[%clk 0:03:01.6]}
2... e6 {[%clk 0:02:53.6]} 3. Nc3 {[%clk 0:03:01.8]} 3... Bb4 {[%clk 0:02:53.9]}
4. Qc2 {[%clk 0:03:02.4]} 4... O-O {[%clk 0:02:52.5]} 5. a3 {[%clk 0:03:02.4]}
5... Bxc3+ {[%clk 0:02:51.5]} 6. Qxc3 {[%clk 0:03:02.8]} 6... d5 {[%clk
0:02:49]} 7. Nf3 {[%clk 0:03:03.4]} 7... dxc4 {[%clk 0:02:45.8]} 8. Qxc4 {[%clk
0:03:04.3]} 8... b6 {[%clk 0:02:45.9]} 9. h4 {[%clk 0:03:04.6]} 9... Ba6 {[%clk
0:02:44.8]} 10. Qc2 {[%clk 0:03:04.6]} 10... h6 {[%clk 0:02:41.8]} 11. Rg1
{[%clk 0:02:59.7]} 11... Nfd7 {[%clk 0:02:21.9]} 12. g4 {[%clk 0:02:58.2]} 12...
Re8 {[%clk 0:02:12.8]} 13. g5 {[%clk 0:02:58.4]} 13... h5 {[%clk 0:02:12.9]} 14.
g6 {[%clk 0:02:41.7]} 14... f6 {[%clk 0:02:11.5]} 15. Qe4 {[%clk 0:02:41.2]}
15... c6 {[%clk 0:02:10.8]} 16. Bf4 {[%clk 0:02:20.4]} 16... Nf8 {[%clk
0:02:10.9]} 17. Rc1 {[%clk 0:02:19.8]} 17... Qd5 {[%clk 0:01:55]} 18. Qxd5
{[%clk 0:02:18]} 18... cxd5 {[%clk 0:01:55]} 19. Bh3 {[%clk 0:02:04.6]} 19...
Nbd7 {[%clk 0:01:51.9]} 20. Kd2 {[%clk 0:02:02.1]} 20... Rac8 {[%clk 0:01:45.7]}
21. Bd6 {[%clk 0:01:59.8]} 21... Bb5 {[%clk 0:00:58.6]} 22. e3 {[%clk
0:01:34.7]} 22... a5 {[%clk 0:00:55.7]} 23. Rxc8 {[%clk 0:01:31]} 23... Rxc8
{[%clk 0:00:55.2]} 24. Ne1 {[%clk 0:01:30.8]} 24... Rc6 {[%clk 0:00:49.2]} 25.
Bxf8 {[%clk 0:01:22.5]} 25... Kxf8 {[%clk 0:00:43.7]} 26. Bf1 {[%clk 0:01:22.2]}
26... Bxf1 {[%clk 0:00:39.3]} 27. Rxf1 {[%clk 0:01:23.1]} 27... Ke7 {[%clk
0:00:36.6]} 28. Nd3 {[%clk 0:01:22.7]} 28... e5 {[%clk 0:00:37.1]} 29. b4 {[%clk
0:01:03]} 29... Rc4 {[%clk 0:00:33.9]} 30. bxa5 {[%clk 0:00:58.4]} 30... bxa5
{[%clk 0:00:34.2]} 31. Nb2 {[%clk 0:00:57.5]} 31... Rc6 {[%clk 0:00:29.9]} 32.
Nd3 {[%clk 0:00:57.2]} 32... Rc4 {[%clk 0:00:30]} 33. Nb2 {[%clk 0:00:47.2]}
33... Rc6 {[%clk 0:00:15.9]} 34. Nd3 {[%clk 0:00:39.2]} 34... Ke6 {[%clk
0:00:11.9]} 35. f4 {[%clk 0:00:39.3]} 35... exd4 {[%clk 0:00:10.7]} 36. f5+
{[%clk 0:00:39.1]} 36... Kd6 {[%clk 0:00:10]} 37. exd4 {[%clk 0:00:39.5]} 37...
Rc4 {[%clk 0:00:10.5]} 38. Ke3 {[%clk 0:00:12]} 38... Rc3 {[%clk 0:00:10.8]} 39.
Ra1 {[%clk 0:00:10.6]} 39... Nb8 {[%clk 0:00:10.4]} 40. Kd2 {[%clk 0:00:10.4]}
40... Rc4 {[%clk 0:00:11]} 41. Nf4 {[%clk 0:00:09.8]} 41... Rxd4+ {[%clk
0:00:10.7]} 42. Ke3 {[%clk 0:00:10.5]} 42... Re4+ {[%clk 0:00:11]} 43. Kf3
{[%clk 0:00:11]} 43... Nc6 {[%clk 0:00:11.5]} 44. Nxh5 {[%clk 0:00:11]} 44...
Nd4+ {[%clk 0:00:11.6]} 45. Kf2 {[%clk 0:00:10.6]} 45... Nxf5 {[%clk 0:00:12.5]}
46. Rh1 {[%clk 0:00:07]} 46... Ke5 {[%clk 0:00:11.9]} 47. Rh3 {[%clk 0:00:05.4]}
47... a4 {[%clk 0:00:12]} 48. Rh1 {[%clk 0:00:05.2]} 48... d4 {[%clk 0:00:11.9]}
49. Rb1 {[%clk 0:00:05.5]} 49... Rxh4 {[%clk 0:00:11.7]} 50. Rb5+ {[%clk
0:00:05.6]} 50... Ke4 {[%clk 0:00:11.6]} 51. Ng3+ {[%clk 0:00:04.7]} 51... Nxg3
{[%clk 0:00:12]} 52. Kxg3 {[%clk 0:00:05.6]} 52... Rh6 {[%clk 0:00:12.6]} 53.
Rb4 {[%clk 0:00:05.5]} 53... Rxg6+ {[%clk 0:00:12.6]} 54. Kf2 {[%clk 0:00:05.3]}
54... Rh6 {[%clk 0:00:12.3]} 55. Rxa4 {[%clk 0:00:05.6]} 55... f5 {[%clk
0:00:12.1]} 56. Ra7 {[%clk 0:00:05.3]} 56... g5 {[%clk 0:00:12.3]} 57. Re7+
{[%clk 0:00:05.2]} 57... Kf4 {[%clk 0:00:12.9]} 58. Rd7 {[%clk 0:00:05.2]} 58...
Rh2+ {[%clk 0:00:12.8]} 59. Ke1 {[%clk 0:00:04.9]} 59... Ke3 {[%clk 0:00:12.5]}
60. Rd5 {[%clk 0:00:05.2]} 60... d3 {[%clk 0:00:11.3]} 61. Re5+ {[%clk
0:00:05.6]} 61... Kf4 {[%clk 0:00:08.9]} 62. Rd5 {[%clk 0:00:05.5]} 62... Ke4
{[%clk 0:00:09.4]} 63. Rd8 {[%clk 0:00:04.6]} 63... g4 {[%clk 0:00:10]} 64. Kd1
{[%clk 0:00:04.1]} 64... g3 {[%clk 0:00:10.1]} 0-1

[Event "Early-Titled-Tuesday-Blitz-September-12-2023"]
[Site "Chess.com"]
[Date "2023.09.12"]
[Round "8"]
[White "aghasiyevkamal"]
[Black "MightyGMpretender"]
[Result "0-1"]
[WhiteElo "2558"]
[BlackElo "2797"]
[TimeControl "180+1"]
[EndTime "9:29:38 PDT"]
[Termination "MightyGMpretender won on time"]

1. d4 {[%clk 0:02:56.4]} 1... Nf6 {[%clk 0:02:57.3]} 2. c4 {[%clk 0:02:53.5]}
2... e6 {[%clk 0:02:57.8]} 3. Nf3 {[%clk 0:02:51.5]} 3... d5 {[%clk 0:02:58.1]}
4. g3 {[%clk 0:02:50.3]} 4... c6 {[%clk 0:02:52.2]} 5. Nbd2 {[%clk 0:02:49]}
5... Ne4 {[%clk 0:02:49.9]} 6. Bg2 {[%clk 0:02:48.1]} 6... Bd6 {[%clk
0:02:47.9]} 7. O-O {[%clk 0:02:47.6]} 7... f5 {[%clk 0:02:48.3]} 8. Qc2 {[%clk
0:02:38.6]} 8... O-O {[%clk 0:02:46.9]} 9. b3 {[%clk 0:02:38.4]} 9... Nd7 {[%clk
0:02:43.6]} 10. Bb2 {[%clk 0:02:35.6]} 10... Qf6 {[%clk 0:02:28.2]} 11. e3
{[%clk 0:02:25.3]} 11... g5 {[%clk 0:02:03.7]} 12. Nxe4 {[%clk 0:02:20.7]} 12...
fxe4 {[%clk 0:02:01.2]} 13. Nd2 {[%clk 0:02:20.9]} 13... g4 {[%clk 0:01:57.3]}
14. Rac1 {[%clk 0:01:53.8]} 14... Qg7 {[%clk 0:01:46.5]} 15. b4 {[%clk
0:01:31.3]} 15... Bxb4 {[%clk 0:01:19.4]} 16. cxd5 {[%clk 0:01:11.2]} 16... Bxd2
{[%clk 0:01:19]} 17. Qxd2 {[%clk 0:01:10.1]} 17... exd5 {[%clk 0:01:18.5]} 18.
Ba3 {[%clk 0:01:09.8]} 18... Rf6 {[%clk 0:01:07.4]} 19. Qe2 {[%clk 0:00:53.8]}
19... Nb6 {[%clk 0:01:04.3]} 20. Bc5 {[%clk 0:00:47.8]} 20... Be6 {[%clk
0:01:03.7]} 21. Bd6 {[%clk 0:00:42]} 21... Rf5 {[%clk 0:00:55.2]} 22. Bf4 {[%clk
0:00:39.1]} 22... Re8 {[%clk 0:00:38.7]} 23. Qd2 {[%clk 0:00:34.6]} 23... Nc4
{[%clk 0:00:37.1]} 24. Qb4 {[%clk 0:00:33.7]} 24... b6 {[%clk 0:00:34.3]} 25.
Rfd1 {[%clk 0:00:27.6]} 25... h5 {[%clk 0:00:30.8]} 26. Qa4 {[%clk 0:00:21.2]}
26... b5 {[%clk 0:00:21.4]} 27. Qb4 {[%clk 0:00:20.2]} 27... a5 {[%clk
0:00:21.4]} 28. Qc5 {[%clk 0:00:18.7]} 28... Rc8 {[%clk 0:00:10.9]} 29. Bf1
{[%clk 0:00:17.4]} 29... Qd7 {[%clk 0:00:07.4]} 30. a4 {[%clk 0:00:16.2]} 30...
b4 {[%clk 0:00:06.6]} 31. Bxc4 {[%clk 0:00:10.1]} 31... dxc4 {[%clk 0:00:06.8]}
32. Be5 {[%clk 0:00:10.2]} 32... Qd5 {[%clk 0:00:05.7]} 33. Qe7 {[%clk
0:00:08.1]} 33... Qd7 {[%clk 0:00:03.6]} 34. Qh4 {[%clk 0:00:06.3]} 34... Re8
{[%clk 0:00:03.6]} 35. Bf4 {[%clk 0:00:04.8]} 35... Ref8 {[%clk 0:00:03.9]} 36.
d5 {[%clk 0:00:04.3]} 36... Bxd5 {[%clk 0:00:03.9]} 37. Rxc4 {[%clk 0:00:04.5]}
37... Qd8 {[%clk 0:00:03.9]} 38. Qxd8 {[%clk 0:00:02.8]} 38... Rxd8 {[%clk
0:00:04.8]} 39. Rxc6 {[%clk 0:00:03.7]} 39... Bxc6 {[%clk 0:00:03.9]} 40. Rxd8+
{[%clk 0:00:04.3]} 40... Kf7 {[%clk 0:00:04.6]} 41. Rc8 {[%clk 0:00:04.4]} 41...
Bd7 {[%clk 0:00:04.3]} 42. Rc7 {[%clk 0:00:04.3]} 42... Rd5 {[%clk 0:00:04.9]}
43. Kg2 {[%clk 0:00:03.8]} 43... Ke6 {[%clk 0:00:05.1]} 44. Rb7 {[%clk 0:00:04]}
44... Bxa4 {[%clk 0:00:05.2]} 45. h3 {[%clk 0:00:03.2]} 45... Bd1 {[%clk
0:00:05.2]} 46. hxg4 {[%clk 0:00:02.7]} 46... hxg4 {[%clk 0:00:06.1]} 47. Rb6+
{[%clk 0:00:03.3]} 47... Kd7 {[%clk 0:00:06]} 48. Kf1 {[%clk 0:00:04.2]} 48...
Bf3 {[%clk 0:00:06.3]} 49. Rb7+ {[%clk 0:00:01.6]} 49... Kc6 {[%clk 0:00:06.5]}
50. Rc7+ {[%clk 0:00:02.5]} 50... Kb6 {[%clk 0:00:07]} 51. Rc1 {[%clk
0:00:03.1]} 51... a4 {[%clk 0:00:07.2]} 52. Ke1 {[%clk 0:00:03]} 52... a3 {[%clk
0:00:07.1]} 53. Bc7+ {[%clk 0:00:03.9]} 53... Kb5 {[%clk 0:00:07.5]} 0-1

[Event "Early-Titled-Tuesday-Blitz-September-12-2023"]
[Site "Chess.com"]
[Date "2023.09.12"]
[Round "8"]
[White "Boundless_Strike"]
[Black "MdImranCM"]
[Result "0-1"]
[WhiteElo "2611"]
[BlackElo "2501"]
[TimeControl "180+1"]
[EndTime "9:29:40 PDT"]
[Termination "MdImranCM won by checkmate"]

1. d3 {[%clk 0:03:00.9]} 1... d5 {[%clk 0:02:57.7]} 2. e4 {[%clk 0:03:00.8]}
2... dxe4 {[%clk 0:02:57.4]} 3. Nc3 {[%clk 0:03:00.9]} 3... Nf6 {[%clk 0:02:56]}
4. Bg5 {[%clk 0:03:00.5]} 4... e6 {[%clk 0:02:53.3]} 5. Qd2 {[%clk 0:02:54.1]}
5... h6 {[%clk 0:02:52.3]} 6. Bh4 {[%clk 0:02:54.2]} 6... exd3 {[%clk
0:02:50.1]} 7. Bxd3 {[%clk 0:02:53]} 7... Be7 {[%clk 0:02:50.6]} 8. O-O-O {[%clk
0:02:52.7]} 8... Nbd7 {[%clk 0:02:47.6]} 9. Nf3 {[%clk 0:02:49.4]} 9... Ng4
{[%clk 0:02:47.5]} 10. h3 {[%clk 0:02:43.1]} 10... Bxh4 {[%clk 0:02:46.5]} 11.
hxg4 {[%clk 0:02:43.2]} 11... Be7 {[%clk 0:02:38.1]} 12. g5 {[%clk 0:02:39.7]}
12... h5 {[%clk 0:02:37.5]} 13. g6 {[%clk 0:02:39.6]} 13... f6 {[%clk
0:02:32.7]} 14. Qe2 {[%clk 0:02:14.3]} 14... c6 {[%clk 0:02:26.6]} 15. Bc4
{[%clk 0:01:25.6]} 15... Qa5 {[%clk 0:01:08.6]} 16. Bxe6 {[%clk 0:00:45.6]}
16... Ne5 {[%clk 0:01:08]} 17. Bxc8 {[%clk 0:00:32.1]} 17... Rxc8 {[%clk
0:01:07.4]} 18. Rhe1 {[%clk 0:00:26.8]} 18... Rd8 {[%clk 0:00:50.3]} 19. Rxd8+
{[%clk 0:00:18.7]} 19... Kxd8 {[%clk 0:00:46]} 20. Nxe5 {[%clk 0:00:19]} 20...
fxe5 {[%clk 0:00:44.8]} 21. Qxe5 {[%clk 0:00:19.1]} 21... Qxe5 {[%clk
0:00:43.9]} 22. Rxe5 {[%clk 0:00:20]} 22... Rh6 {[%clk 0:00:44.8]} 23. g3 {[%clk
0:00:17.7]} 23... h4 {[%clk 0:00:42.8]} 24. gxh4 {[%clk 0:00:18.1]} 24... Bxh4
{[%clk 0:00:38.6]} 25. Re4 {[%clk 0:00:13]} 25... Rxg6 {[%clk 0:00:39.2]} 26.
Rxh4 {[%clk 0:00:13.1]} 26... Rg1+ {[%clk 0:00:36.9]} 27. Kd2 {[%clk 0:00:13]}
27... Kc7 {[%clk 0:00:37.2]} 28. Ne4 {[%clk 0:00:12.6]} 28... a5 {[%clk
0:00:35.9]} 29. a4 {[%clk 0:00:12.4]} 29... b5 {[%clk 0:00:35]} 30. axb5 {[%clk
0:00:12.8]} 30... cxb5 {[%clk 0:00:35.9]} 31. Rh5 {[%clk 0:00:12.7]} 31... Kc6
{[%clk 0:00:33.7]} 32. Rg5 {[%clk 0:00:11.4]} 32... Rh1 {[%clk 0:00:28.6]} 33.
Rxg7 {[%clk 0:00:11.4]} 33... b4 {[%clk 0:00:28.8]} 34. c3 {[%clk 0:00:11.4]}
34... Kb5 {[%clk 0:00:26]} 35. cxb4 {[%clk 0:00:10.7]} 35... axb4 {[%clk
0:00:25.2]} 36. Rb7+ {[%clk 0:00:11.3]} 36... Kc4 {[%clk 0:00:23.4]} 37. Ke3
{[%clk 0:00:05.2]} 37... Re1+ {[%clk 0:00:20.3]} 38. Kf4 {[%clk 0:00:05.6]}
38... Re2 {[%clk 0:00:17.9]} 39. f3 {[%clk 0:00:04.2]} 39... Rxb2 {[%clk
0:00:18.2]} 40. Ke5 {[%clk 0:00:04.9]} 40... b3 {[%clk 0:00:15.1]} 41. f4 {[%clk
0:00:05.3]} 41... Re2 {[%clk 0:00:13.6]} 42. f5 {[%clk 0:00:05.8]} 42... b2
{[%clk 0:00:12.6]} 43. f6 {[%clk 0:00:06.2]} 43... Kd3 {[%clk 0:00:12.5]} 44.
Re7 {[%clk 0:00:01.7]} 44... Rxe4+ {[%clk 0:00:12.2]} 45. Kd6 {[%clk 0:00:02.5]}
45... Rd4+ {[%clk 0:00:07.8]} 46. Ke6 {[%clk 0:00:02.5]} 46... b1=Q {[%clk
0:00:08.7]} 47. f7 {[%clk 0:00:03.2]} 47... Qb3+ {[%clk 0:00:09.2]} 48. Kf6
{[%clk 0:00:03.6]} 48... Rf4+ {[%clk 0:00:09.8]} 49. Kg7 {[%clk 0:00:04.1]}
49... Qc3+ {[%clk 0:00:10.6]} 50. Kf8 {[%clk 0:00:04.5]} 50... Qc8+ {[%clk
0:00:10.9]} 51. Re8 {[%clk 0:00:04.7]} 51... Qc5+ {[%clk 0:00:11]} 52. Re7
{[%clk 0:00:05.2]} 52... Re4 {[%clk 0:00:10.9]} 53. Kg7 {[%clk 0:00:05.5]} 53...
Qxe7 {[%clk 0:00:11.5]} 54. Kh8 {[%clk 0:00:06.4]} 54... Rh4+ {[%clk 0:00:11.8]}
55. Kg7 {[%clk 0:00:04.8]} 55... Rg4+ {[%clk 0:00:12.7]} 56. Kh6 {[%clk
0:00:04.1]} 56... Qh4# {[%clk 0:00:13.6]} 0-1

[Event "Early-Titled-Tuesday-Blitz-September-12-2023"]
[Site "Chess.com"]
[Date "2023.09.12"]
[Round "8"]
[White "Nekoo04"]
[Black "Maus7"]
[Result "0-1"]
[WhiteElo "2281"]
[BlackElo "2472"]
[TimeControl "180+1"]
[EndTime "9:29:50 PDT"]
[Termination "Maus7 won by resignation"]

1. d4 {[%clk 0:03:00.9]} 1... Nf6 {[%clk 0:02:59.5]} 2. c4 {[%clk 0:03:00.7]}
2... c6 {[%clk 0:02:59.4]} 3. Nf3 {[%clk 0:02:59.6]} 3... d5 {[%clk 0:03:00]} 4.
g3 {[%clk 0:03:00.3]} 4... dxc4 {[%clk 0:02:53.5]} 5. Bg2 {[%clk 0:03:00.2]}
5... e6 {[%clk 0:02:49.4]} 6. Ne5 {[%clk 0:02:59.1]} 6... Bb4+ {[%clk
0:02:47.6]} 7. Bd2 {[%clk 0:02:55.9]} 7... Be7 {[%clk 0:02:44.2]} 8. e3 {[%clk
0:02:36.5]} 8... b5 {[%clk 0:02:44.4]} 9. Nxc6 {[%clk 0:02:34.9]} 9... Nxc6
{[%clk 0:02:43.7]} 10. Bxc6+ {[%clk 0:02:34.1]} 10... Bd7 {[%clk 0:02:44.6]} 11.
Bxa8 {[%clk 0:02:31.9]} 11... Qxa8 {[%clk 0:02:45.5]} 12. O-O {[%clk 0:02:31.8]}
12... e5 {[%clk 0:02:44.5]} 13. dxe5 {[%clk 0:02:22.9]} 13... Bh3 {[%clk
0:02:44.1]} 14. f3 {[%clk 0:02:22]} 14... Ng4 {[%clk 0:02:44.7]} 15. Nc3 {[%clk
0:02:06.7]} 15... a6 {[%clk 0:02:41.8]} 16. a4 {[%clk 0:01:28.2]} 16... b4
{[%clk 0:02:11]} 17. Ne4 {[%clk 0:01:23.9]} 17... Nxe5 {[%clk 0:01:35.7]} 18.
Rf2 {[%clk 0:01:17.1]} 18... O-O {[%clk 0:01:24.7]} 19. Qc2 {[%clk 0:01:15.9]}
19... Rc8 {[%clk 0:00:38.9]} 20. Bxb4 {[%clk 0:00:52]} 20... Bxb4 {[%clk
0:00:21.2]} 21. Ng5 {[%clk 0:00:51.3]} 21... Nd3 {[%clk 0:00:14.1]} 22. Nxh3
{[%clk 0:00:44.5]} 22... Nxf2 {[%clk 0:00:14.1]} 23. Kxf2 {[%clk 0:00:39.4]}
23... c3 {[%clk 0:00:12.8]} 24. Rc1 {[%clk 0:00:21.1]} 24... h6 {[%clk
0:00:11.7]} 25. bxc3 {[%clk 0:00:14.2]} 25... Rxc3 {[%clk 0:00:05.9]} 26. Qb2
{[%clk 0:00:14.1]} 26... Rxc1 {[%clk 0:00:02.5]} 27. Qxc1 {[%clk 0:00:14]} 27...
a5 {[%clk 0:00:02.1]} 28. Nf4 {[%clk 0:00:13.9]} 28... Qd8 {[%clk 0:00:02.1]}
29. Qc2 {[%clk 0:00:11.8]} 29... Qd7 {[%clk 0:00:01.9]} 30. Kg2 {[%clk
0:00:04.5]} 30... g6 {[%clk 0:00:02.5]} 31. Ne2 {[%clk 0:00:04.4]} 31... h5
{[%clk 0:00:03.1]} 32. Nd4 {[%clk 0:00:04.7]} 32... Bf8 {[%clk 0:00:02.7]} 33.
Qc6 {[%clk 0:00:05.1]} 33... Qd8 {[%clk 0:00:02.4]} 34. Nb5 {[%clk 0:00:04.1]}
34... Bb4 {[%clk 0:00:02.8]} 35. Nc7 {[%clk 0:00:03.3]} 35... Qd2+ {[%clk
0:00:03.2]} 36. Kh3 {[%clk 0:00:03.8]} 36... Qxe3 {[%clk 0:00:03.2]} 37. Nd5
{[%clk 0:00:03.9]} 37... Qe6+ {[%clk 0:00:02.5]} 38. Qxe6 {[%clk 0:00:03.8]}
38... fxe6 {[%clk 0:00:03.4]} 39. Nc7 {[%clk 0:00:04.6]} 39... Kf7 {[%clk
0:00:02.8]} 40. Kg2 {[%clk 0:00:05]} 40... Kf6 {[%clk 0:00:02.8]} 41. Kf2 {[%clk
0:00:05]} 41... Ke5 {[%clk 0:00:03.4]} 42. Ke2 {[%clk 0:00:05.2]} 42... Kd6
{[%clk 0:00:02.1]} 43. Ne8+ {[%clk 0:00:04]} 43... Kd7 {[%clk 0:00:02.3]} 44.
Nf6+ {[%clk 0:00:04]} 44... Kc6 {[%clk 0:00:02.6]} 45. Kd3 {[%clk 0:00:04.2]}
45... Be7 {[%clk 0:00:02.1]} 46. Ne4 {[%clk 0:00:04.2]} 46... Kd5 {[%clk
0:00:02.6]} 47. Nc3+ {[%clk 0:00:04.1]} 47... Kc5 {[%clk 0:00:03.2]} 48. Nb5
{[%clk 0:00:02.5]} 48... Kb4 {[%clk 0:00:03.3]} 49. Nc7 {[%clk 0:00:03.1]} 49...
e5 {[%clk 0:00:02.3]} 50. Nd5+ {[%clk 0:00:03.1]} 50... Kxa4 {[%clk 0:00:01.9]}
51. Nxe7 {[%clk 0:00:04]} 51... Kb3 {[%clk 0:00:02.8]} 52. Nxg6 {[%clk
0:00:03.9]} 52... a4 {[%clk 0:00:03.7]} 53. Nxe5 {[%clk 0:00:04.6]} 53... a3
{[%clk 0:00:04.6]} 54. Nc4 {[%clk 0:00:02.9]} 54... a2 {[%clk 0:00:05.5]} 55.
Nd2+ {[%clk 0:00:03.3]} 55... Ka4 {[%clk 0:00:01.9]} 56. Ne4 {[%clk 0:00:02.5]}
56... a1=Q {[%clk 0:00:02.2]} 57. Nc3+ {[%clk 0:00:03.4]} 57... Ka5 {[%clk
0:00:02.1]} 0-1

[Event "Early-Titled-Tuesday-Blitz-September-12-2023"]
[Site "Chess.com"]
[Date "2023.09.12"]
[Round "8"]
[White "Amirreza_p"]
[Black "vladoboch"]
[Result "1-0"]
[WhiteElo "2562"]
[BlackElo "2414"]
[TimeControl "180+1"]
[EndTime "9:29:51 PDT"]
[Termination "Amirreza_p won by checkmate"]

1. Nf3 {[%clk 0:03:00.9]} 1... c5 {[%clk 0:02:58.8]} 2. c4 {[%clk 0:02:58.9]}
2... Nc6 {[%clk 0:02:58.9]} 3. g3 {[%clk 0:02:57.3]} 3... g6 {[%clk 0:02:59.2]}
4. b3 {[%clk 0:02:55.8]} 4... Bg7 {[%clk 0:02:59]} 5. Nc3 {[%clk 0:02:56.3]}
5... e5 {[%clk 0:02:59.4]} 6. Bb2 {[%clk 0:02:52.2]} 6... Nge7 {[%clk
0:02:59.5]} 7. d3 {[%clk 0:02:50.7]} 7... d6 {[%clk 0:02:59.9]} 8. Bg2 {[%clk
0:02:49.6]} 8... O-O {[%clk 0:03:00.2]} 9. O-O {[%clk 0:02:50.1]} 9... Be6
{[%clk 0:03:00.5]} 10. Ng5 {[%clk 0:02:49.2]} 10... Bd7 {[%clk 0:02:53.5]} 11.
Nge4 {[%clk 0:02:33.4]} 11... Be6 {[%clk 0:02:51.4]} 12. Ng5 {[%clk 0:02:33.4]}
12... Bc8 {[%clk 0:02:48.9]} 13. a3 {[%clk 0:02:27.3]} 13... h6 {[%clk
0:02:47.4]} 14. Nf3 {[%clk 0:02:26.1]} 14... Be6 {[%clk 0:02:46.3]} 15. Nd2
{[%clk 0:02:26.5]} 15... Rb8 {[%clk 0:02:44.6]} 16. Ncb1 {[%clk 0:02:20.7]}
16... a6 {[%clk 0:02:43.3]} 17. Nc3 {[%clk 0:02:16.3]} 17... b5 {[%clk
0:02:37.1]} 18. Rb1 {[%clk 0:02:14.5]} 18... Kh7 {[%clk 0:02:32.7]} 19. Nd5
{[%clk 0:02:14.2]} 19... f5 {[%clk 0:02:14.1]} 20. e3 {[%clk 0:02:09.8]} 20...
bxc4 {[%clk 0:02:01.5]} 21. bxc4 {[%clk 0:01:56.5]} 21... Bg8 {[%clk 0:00:56.4]}
22. Bc3 {[%clk 0:01:52.8]} 22... Nxd5 {[%clk 0:00:55.4]} 23. cxd5 {[%clk
0:01:50.5]} 23... Ne7 {[%clk 0:00:55.1]} 24. e4 {[%clk 0:01:51.1]} 24... Qd7
{[%clk 0:00:51.2]} 25. Nc4 {[%clk 0:01:47.8]} 25... f4 {[%clk 0:00:44.7]} 26. f3
{[%clk 0:01:46.2]} 26... Bf6 {[%clk 0:00:27.1]} 27. Rxb8 {[%clk 0:01:40.6]}
27... Rxb8 {[%clk 0:00:27.1]} 28. gxf4 {[%clk 0:01:41.2]} 28... Rb3 {[%clk
0:00:19.5]} 29. fxe5 {[%clk 0:01:38.9]} 29... Rxc3 {[%clk 0:00:18]} 30. exf6
{[%clk 0:01:38.8]} 30... Nc8 {[%clk 0:00:16.2]} 31. Qd2 {[%clk 0:01:35.4]} 31...
Rb3 {[%clk 0:00:16.5]} 32. Qc2 {[%clk 0:01:34.4]} 32... Rb7 {[%clk 0:00:16.3]}
33. Rb1 {[%clk 0:01:32.1]} 33... Rxb1+ {[%clk 0:00:16.1]} 34. Qxb1 {[%clk
0:01:33]} 34... Qf7 {[%clk 0:00:14.1]} 35. Qb8 {[%clk 0:01:31.2]} 35... Qxf6
{[%clk 0:00:12.8]} 36. Qxc8 {[%clk 0:01:25.4]} 36... Qd4+ {[%clk 0:00:13.3]} 37.
Kf1 {[%clk 0:01:19.2]} 37... Qxd3+ {[%clk 0:00:13.9]} 38. Kf2 {[%clk 0:01:19.6]}
38... Qc2+ {[%clk 0:00:11.5]} 39. Kg3 {[%clk 0:01:18.5]} 39... Qxc4 {[%clk
0:00:10.8]} 40. Qd7+ {[%clk 0:01:18.8]} 40... Kh8 {[%clk 0:00:09.2]} 41. Qxd6
{[%clk 0:01:19.7]} 41... Qc3 {[%clk 0:00:04.3]} 42. Qxg6 {[%clk 0:01:14.8]}
42... c4 {[%clk 0:00:04.6]} 43. Qxh6+ {[%clk 0:01:14]} 43... Bh7 {[%clk
0:00:04.7]} 44. Qf8+ {[%clk 0:01:12.6]} 44... Bg8 {[%clk 0:00:05.3]} 45. d6
{[%clk 0:01:12.6]} 45... Qe5+ {[%clk 0:00:05]} 46. f4 {[%clk 0:00:57.9]} 46...
Qc3+ {[%clk 0:00:05.2]} 47. Bf3 {[%clk 0:00:58.1]} 47... Qe1+ {[%clk 0:00:05.9]}
48. Kg4 {[%clk 0:00:51.7]} 48... Qg1+ {[%clk 0:00:04.8]} 49. Kf5 {[%clk
0:00:50.2]} 49... Kh7 {[%clk 0:00:03.2]} 50. Qe7+ {[%clk 0:00:47.6]} 50... Kh8
{[%clk 0:00:03]} 51. d7 {[%clk 0:00:41.1]} 51... Bh7+ {[%clk 0:00:03.4]} 52.
Qxh7+ {[%clk 0:00:34.3]} 52... Kxh7 {[%clk 0:00:03.5]} 53. d8=Q {[%clk
0:00:34.2]} 53... Qg6+ {[%clk 0:00:03.9]} 54. Ke5 {[%clk 0:00:32.6]} 54... c3
{[%clk 0:00:03.9]} 55. Qc7+ {[%clk 0:00:29.5]} 55... Kh6 {[%clk 0:00:02.3]} 56.
f5 {[%clk 0:00:22.9]} 56... Qg5 {[%clk 0:00:02.2]} 57. Qc6+ {[%clk 0:00:18.5]}
57... Kh7 {[%clk 0:00:01.9]} 58. Qxc3 {[%clk 0:00:14.3]} 58... Qg7+ {[%clk
0:00:02.3]} 59. f6 {[%clk 0:00:14.9]} 59... Qg5+ {[%clk 0:00:03.2]} 60. Ke6
{[%clk 0:00:14.6]} 60... Qb5 {[%clk 0:00:03.1]} 61. Qc7+ {[%clk 0:00:13.4]}
61... Kh6 {[%clk 0:00:03.1]} 62. Qg7# {[%clk 0:00:13.6]} 1-0